Workbook

Sheet Instructions
B1: Prepared by
A4: Coronavirus Under-Utilization Calculator Unified Utilization Rate: Sample Data
A6: DDS Statement
A7: DDS has reviewed the worksheets and, if calculations work as intended, they can be used as an option for documenting the average number of absences/utilization to help support claiming in response to the State of Emergency declared by the Governor on March 4, 2020. Use of these worksheets is not required, however the provider must keep supporting documentation that is subject to audit. See the DDS website for further information.
A9: General Instructions
A10: 1 | B10: Spreadsheet applies to one service code only. If multiple service codes are needed, multiple spreadsheets have to be completed.
A11: 2 | B11: It is assumed that any POS with zero utilization during the lookback period, or if they are unissued in the current billing month, will receive no emergency funding. These POS's utilization rates cannot be established.
A12: 3 | B12: One-time POS's are excluded.
A13: 4 | B13: Assumes Regional Centers (RCs) will track units for the applicable service months over their normal billing period. For instance, if a vendor bills the 30 units provided on a given POS for the service month of March, 2020 and attempts to later bill 23 units on the same POS and service month, it is assumed the RC will reject the 23 units as they've already paid 30.
A14: 5 | B14: It is assumed RCs can track POS's issued, allotted POS units for a given service month and units utilized.
A16: Tab Instructions
A18: Utilization by POS Tab
A19: Row
A20: A | B20: No. of consumers.
A21: B | B21: Enter Consumer UCI No.
A22: C | B22: Enter initials of consumer.
A23: D | B23: Enter all POS's for a given consumer and given service code covering the period of March 2019 - February 2020. This is the period that will be used to establish your utilization rate. If you prefer to use a different lookback period, please consult your Regional Center. If the vendor has POS #123 for 3/1/19-6/30/19 and POS #456 that runs from 7/1/19-2/29/20, vendor will include both POS's here. If you wish to use the 2019 calendar year, please notify your Regional Center that you are using this lookback period.
A24: E | B24: Add up all units of service on all applicable POS's for the lookback period and enter here. For ILS, Respite and Day Care services 1 Unit = 1 Hour. For Day Programs 1 Unit = 1 Day. NOTE: Do not include units for canceled POS's. For instance, POS #123 is for January-December and allotted 30 units a month, with total annual units of 360. POS #123 is cancelled and replaced by POS #456 for July-December with 10 units per month. Report total allotted units as 240, that is report 180 units for POS #123 and report 60 units for POS #456. Ignore POS #123 for service months July-December, because it was cancelled and replaced by POS #456.
A25: F | B25: Enter utilized units in the lookback period.
A26: G | B26: Utilization Rate is calculated as Total Utilized Units/Total Allotted Units (F/E).
A28: Calculator Tab: Coronavirus Special Payment
A29: Row
A30: A | B30: No. of consumers.
A31: B | B31: Enter UCI number for each consumer.
A32: C | B32: Enter Consumer Initials.
A33: D | B33: Enter POS covering March 2020 is entered. If a consumer has multiple POS's enter one POS per row, and enter multiple lines for the same consumer.
A34: E | B34: Period of POS is selected (Monthly or Quarterly).
A35: F | B35: POS allotted units per Period.
A36: G | B36: Utilization rate is filled from Utilization tab.
A37: H | B37: Month in Quarter calculates the month in the quarter, to be used to calculate Projected Units in J. For January, April, July, and October, the cell returns a 1. For February, May, August, November, the cell returns a 2. For March, June, September, and December the cell returns a 3.
A38: I | B38: Enter the units billed previously in the Quarter. For instance, if the vendor billed service units for January and February and are currently billing the service month of March, enter those January and February units here.
A39: J | B39: Calculates the Utilization Rate x Allotted Units.
A40: K | B40: Projected Units are calculated differently depending on the POS Period. For monthly POSs, the Projected Units are Allotted Units * Utilization Rate (E x F). For Quarterly POSs we determine the month of the quarter (1st, 2nd or 3rd) in H. Then prorate the units based on the month of the quarter. The first month of the quarter is allocated 33% of the total units on the POS, the second month of the quarter is allocated 66%, and the third 100%.
A41: L | B41: eBill units are completed by the vendor. These are the units that would have billed without emergency funding and are the units of service provided by a DSP. For quarterly POS's, include all units that have been billed earlier in the quarter. For instance, if there were units billed in January and February, include those units here.
A42: M | B42: SOE Units (State of Emergency Units) calculates the number of units that are being billed, over and above the eBill units. Please bill all SOE Units on the last day of the month.
A43: N | B43: Remittable Units takes the greater of Projected Units (J) or eBill Units (L).
A44: O | B44: Enter the billable rate provided by the Regional Center.
A45: P | B45: Remittance takes the Billable Rate and multiplies it by the Remittable Units.

Sheet Utilization by POS
A1: Agency Name
A2: Utilization by POS
A3: Service Code
A4: March 2019 - February 2020, or Applicable Lookback Period
A5: A | B5: B | C5: C | D5: D | E5: E | F5: F
A6: No. | B6: UCI | C6: Consumer Initials | D6: All POS for Consumer | E6: Total Allotted Units (all POS's) for Lookback Period See Instructions | F6: Total Actual Utilized Units for Lookback Period
A7: 1 | B7: 9994444 | C7: MS | D7: 19011111, 19455566 | E7: 200 | F7: 100
A8: 2 | B8: 9995555 | C8: YZ | D8: 19022222, 19055555 | E8: 150 | F8: 100
A9: 3
A10: 4
A11: 5
A12: Utilization Rate (Col E/Col D) | F12: =SUM(F7:F11)/SUM(E7:E11) -> 0.5714285714
B14: Vendor to enter grayed cells.

Sheet Calculator
A1: Agency Name | S1: Monthly | T1: January
A2: Coronavirus Special Payment | S2: Quarterly | T2: February
T3: March
H4: ENTER Service Code | I4: 862 | J4: ENTER Service Month | K4: March | T4: April
A5: A | B5: B | C5: C | D5: D | E5: E | F5: F | G5: G | H5: H | I5: I | J5: J | K5: K | L5: L | M5: M | N5: N | O5: O | P5: P | T5: May
B6: Consumer Information | H6: Complete for Quarterly POS's Only | K6: Remittance | T6: June
A7: No | B7: UCI | C7: Consumer Initials | D7: POS for Service Month | E7: Period (Select Monthly or Quarterly) | F7: POS Allotted Units for Lookback Period | G7: Utilization Rate from Utilization Tab | H7: Month in Quarter (1st, 2nd or 3rd) | I7: Quarterly POS's: Previously Billed Units in Current Quarter | J7: Utilization Rate x Allotted Units (F x G) | K7: Projected Units | L7: eBill Units for Current Service Month (Actual Service) | M7: SOE Units | N7: Remittable Units | O7: Rate provided by RC | P7: Remittance | T7: July
A8: 1 | B8: 9994444 | C8: MS | D8: 20455566 | E8: Quarterly | F8: 30 | G8: =+'Utilization by POS'!$F$12 -> 0.5714285714 | H8: =+IF($K$4="January",1,IF($K$4="February",2,IF($K$4="March",3,IF($K$4="April",1,IF($K$4="May",2,IF($K$4="June",3,IF($K$4="July",1,IF($K$4="August",2,IF($K$4="September",3,IF($K$4="October",1,IF($K$4="November",2,IF($K$4="December",3,0)))))))))))) -> 3 | I8: 30 | J8: =+IF(E8="Monthly",0,F8*G8) -> 17.14285714 | K8: =+IF(IF(E8="Monthly",F8*G8,IF(E8="Quarterly",IF(IF(H8=1,J8*0.333,IF(H8=2,J8*0.66666,1*J8))>(J8-I8),(J8-I8),IF(H8=1,J8*0.333,IF(H8=2,J8*0.66666,1*J8)))))<0,0,IF(E8="Monthly",F8*G8,IF(E8="Quarterly",IF(IF(H8=1,J8*0.333,IF(H8=2,J8*0.66666,1*J8))>(J8-I8),(J8-I8),IF(H8=1,J8*0.333,IF(H8=2,J8*0.66666,1*J8)))))) -> 0 | L8: 0 | M8: =+IF(AND((K8-L8)>0,K8>L8),K8-L8,0) -> 0 | N8: =+IF(L8<K8,K8,L8) -> 0 | O8: 25 | P8: =+N8*O8 -> 0 | T8: August
A9: 2 | B9: 9994444 | C9: MS | D9: 20055555 | E9: Quarterly | F9: 90 | G9: =+'Utilization by POS'!$F$12 -> 0.5714285714 | H9: =+IF($K$4="January",1,IF($K$4="February",2,IF($K$4="March",3,IF($K$4="April",1,IF($K$4="May",2,IF($K$4="June",3,IF($K$4="July",1,IF($K$4="August",2,IF($K$4="September",3,IF($K$4="October",1,IF($K$4="November",2,IF($K$4="December",3,0)))))))))))) -> 3 | I9: 20 | J9: =+IF(E9="Monthly",0,F9*G9) -> 51.42857143 | K9: 31.42857143 | L9: 0 | M9: 31.42857143 | N9: =+IF(L9<K9,K9,L9) -> 31.42857143 | O9: 25 | P9: =+N9*O9 -> 785.7142857 | T9: September
A10: 3 | B10: 9996666 | C10: AB | D10: 20055556 | E10: Quarterly | F10: 90 | G10: =+'Utilization by POS'!$F$12 -> 0.5714285714 | H10: 3 | I10: 20 | J10: 51.42857143 | K10: 31.42857143 | L10: 5 | M10: 26.42857143 | N10: 31.42857143 | O10: 25 | P10: 785.7142857 | T10: October
A11: 4 | B11: 9997777 | C11: BC | D11: 20055557 | E11: Quarterly | F11: 50 | G11: =+'Utilization by POS'!$F$12 -> 0.5714285714 | H11: 3 | J11: 28.57142857 | K11: 28.57142857 | L11: 50 | M11: 0 | N11: =+IF(L11<K11,K11,L11) -> 50 | O11: 25 | P11: =+N11*O11 -> 1250 | T11: November
A12: 5 | B12: 9998888 | C12: DE | D12: 20055558 | E12: Quarterly | F12: 100 | G12: =+'Utilization by POS'!$F$12 -> 0.5714285714 | H12: 3 | J12: 57.14285714 | K12: 57.14285714 | L12: 13 | M12: 44.14285714 | N12: 57.14285714 | O12: 25 | P12: 1428.571429 | T12: December
A13: 6 | B13: 9999999 | C13: EF | D13: 20055559 | E13: Quarterly | F13: 120 | G13: =+'Utilization by POS'!$F$12 -> 0.5714285714 | H13: 3 | I13: 20 | J13: 68.57142857 | K13: 48.57142857 | L13: 15 | M13: 33.57142857 | N13: 48.57142857 | O13: 25 | P13: 1214.285714
A14: 7 | B14: 9991111 | C14: FG | D14: 20055560 | E14: Quarterly | F14: 90 | G14: =+'Utilization by POS'!$F$12 -> 0.5714285714 | H14: 3 | I14: 20 | J14: 51.42857143 | K14: 31.42857143 | L14: 15 | M14: 16.42857143 | N14: =+IF(L14<K14,K14,L14) -> 31.42857143 | O14: 25 | P14: =+N14*O14 -> 785.7142857
A15: 8 | B15: 9992222 | C15: HV | D15: 20055561 | E15: Quarterly | F15: 90 | G15: =+'Utilization by POS'!$F$12 -> 0.5714285714 | H15: 3 | J15: 51.42857143 | K15: 51.42857143 | L15: 10 | M15: 41.42857143 | N15: =+IF(L15<K15,K15,L15) -> 51.42857143 | O15: 25 | P15: =+N15*O15 -> 1285.714286
A16: 9 | B16: 9993333 | C16: TZ | D16: 20055562 | E16: Quarterly | F16: 90 | G16: =+'Utilization by POS'!$F$12 -> 0.5714285714 | H16: 3 | J16: 51.42857143 | K16: 51.42857143 | M16: 51.42857143 | N16: =+IF(L16<K16,K16,L16) -> 51.42857143 | O16: 25 | P16: =+N16*O16 -> 1285.714286
A17: 10 | B17: 8881111 | C17: BE | D17: 20055563 | E17: Monthly | F17: 30 | G17: =+'Utilization by POS'!$F$12 -> 0.5714285714 | H17: 3 | J17: 0 | K17: 17.14285714 | M17: =+IF(AND((K17-L17)>0,K17>L17),K17-L17,0) -> 17.14285714 | N17: =+IF(L17<K17,K17,L17) -> 17.14285714 | O17: 25 | P17: =+N17*O17 -> 428.5714286
A18: 11 | B18: 8882222 | C18: RE | D18: 20055564 | E18: Monthly | F18: 50 | G18: =+'Utilization by POS'!$F$12 -> 0.5714285714 | H18: 3 | J18: 0 | K18: 28.57142857 | M18: 28.57142857 | N18: =+IF(L18<K18,K18,L18) -> 28.57142857 | O18: 25 | P18: =+N18*O18 -> 714.2857143
A19: 12 | B19: 8883333 | C19: WS | D19: 20055565 | E19: Monthly | F19: 30 | G19: =+'Utilization by POS'!$F$12 -> 0.5714285714 | H19: 3 | J19: 0 | K19: 17.14285714 | M19: 17.14285714 | N19: =+IF(L19<K19,K19,L19) -> 17.14285714 | O19: 25 | P19: =+N19*O19 -> 428.5714286
A20: 13 | B20: 8884444 | C20: NJ | D20: 20055566 | E20: Monthly | F20: 17 | G20: =+'Utilization by POS'!$F$12 -> 0.5714285714 | H20: 3 | J20: 0 | K20: 9.714285714 | M20: =+IF(AND((K20-L20)>0,K20>L20),K20-L20,0) -> 9.714285714 | N20: 9.714285714 | O20: 25 | P20: 242.8571429
A21: 14 | G21: =+'Utilization by POS'!$F$12 -> 0.5714285714 | H21: 3 | J21: =+IF(E21="Monthly",0,F21*G21) -> 0 | K21: =+IF(IF(E21="Monthly",F21*G21,IF(E21="Quarterly",IF(IF(H21=1,J21*0.333,IF(H21=2,J21*0.66666,1*J21))>(J21-I21),(J21-I21),IF(H21=1,J21*0.333,IF(H21=2,J21*0.66666,1*J21)))))<0,0,IF(E21="Monthly",F21*G21,IF(E21="Quarterly",IF(IF(H21=1,J21*0.333,IF(H21=2,J21*0.66666,1*J21))>(J21-I21),(J21-I21),IF(H21=1,J21*0.333,IF(H21=2,J21*0.66666,1*J21)))))) -> FALSE | M21: 0 | N21: =+IF(L21<K21,K21,L21) -> 0 | P21: =+N21*O21 -> 0
A22: Total | K22: =SUM(K8:K21) -> 404 | L22: =SUM(L8:L21) -> 108 | M22: =SUM(M8:M21) -> 317.4285714 | N22: =SUM(N8:N21) -> 425.4285714 | P22: =SUM(P8:P21) -> 10635.71429
B24: Vendor to enter grayed cells.
B25: Vendor to enter yellow cells.
A27: Total

Sheet Vendor Summary & Certificate
A1: Coronavirus Under-Utilization Calculator Utilization Rate by Consumer
A2: Summary & Certification Sheet
A4: PROGRAM INFORMATION
A5: Service Provider Name:
A6: Vendor Number:
A7: Service Code:
A9: Service Address:
A13: Mailing Address:
A17: CONTACT INFORMATION
D18: Individual Responsible for Completing Worksheet
A19: Contact Name:
A20: Contact Phone Number:
A21: Email Address:
A22: Executive Director/Owner
A26: By checking the box above, I agree that for each SOE unit remitted, there will be a wage payment to the Direct Service Professional(s) that would have provided the service, and that wage equals or is greater than the previous wage paid to these employees. I understand that these wage payments to Direct Service Professional(s), as well as all information contained within this calculator is subject to verification by all record keeping and audit processes, procedures, and guidelines under the Lanterman Act and Title 17 of the California Code of Regulations. I additionally certify that the information provided to the Department is true and correct to the best of my knowledge.
